bitfinex-derivatives/quotes_ETHF0:USTF0_20250612
["timestamp","ask_amount","ask_price","bid_price","bid_amount"]
[1749770255288,4.4771,2649.0,2648.6,1.88682]
[1749770255483,0.75468,2648.9,2648.8,0.75466]
[1749770255695,3.2078,2649.0,2648.9,0.75466]
[1749770255992,0.75463,2649.0,2648.9,0.75466]
[1749770256195,0.75463,2649.1,2649.0,0.7546]
[1749770256389,0.75463,2649.1,2649.0,0.75458]
[1749770256582,1.89204412,2649.3,2648.8,1.89240412]
[1749770256583,0.75463,2649.0,2648.9,7.02464]
[1749770256789,0.75463,2649.0,2648.9,6.27]
[1749770256989,0.75463,2649.0,2648.9,7.02466]
[1749770258199,0.75463,2649.0,2648.9,8.29226]
[1749770259096,0.75463,2649.0,2648.9,6.27]
[1749770259497,0.75463,2649.0,2648.9,7.02466]
[1749770259697,0.75463,2649.0,2648.9,6.27]
[1749770259899,0.75463,2649.0,2648.9,7.5376]
[1749770260298,0.75463,2649.1,2649.0,0.75459]
[1749770260492,0.75463,2649.1,2649.0,2.65919]
[1749770260907,0.76022412,2649.3,2649.2,0.75458]
[1749770261198,0.00566412,2649.3,2649.2,0.75458]
[1749770261395,0.75453,2649.5,2649.4,0.75449]
[1749770261592,0.75453,2649.5,2649.4,6.269]
[1749770262098,0.75455,2649.3,2649.2,6.269]
[1749770263499,0.75466,2648.9,2648.8,33.81713412]
[1749770263699,0.75466,2648.9,2648.8,33.06246412]
[1749770263898,0.75466,2648.9,2648.8,9.48146412]
[1749770265894,0.75466,2648.9,2648.8,3.21346412]
[1749770270207,0.8166772,2648.9,2648.8,3.21346412]
[1749770275802,2.0387772,2648.9,2648.8,3.21346412]
[1749770276710,0.8166772,2648.9,2648.8,3.21346412]
[1749770278609,0.8166772,2648.9,2648.8,3.96815412]
[1749770278907,0.75458,2649.3,2649.2,0.75454]
[1749770279111,0.00373176,2649.5,2649.1,3.2078]
[1749770279112,0.75458,2649.2,2649.1,3.2078]
[1749770279305,0.75461,2649.1,2649.0,1.2824]
[1749770279504,0.75461,2649.1,2649.0,7.5504]
[1749770279705,0.75461,2649.1,2649.0,1.2824]
[1749770279904,0.75461,2649.1,2649.0,6.268]
[1749770283210,0.75466,2648.9,2648.8,3.21346412]
[1749770283413,0.8166772,2648.9,2648.8,3.21346412]
[1749770284313,0.75466,2648.9,2648.8,3.21346412]
[1749770285108,0.75466,2648.9,2648.8,0.00566412]
[1749770285317,3.96246,2648.9,2648.8,0.00566412]
[1749770285507,1.88683,2648.7,2647.6,1.88758]
[1749770285711,0.75489,2648.1,2648.0,0.6169]
[1749770286012,0.75489,2648.1,2648.0,8.2074]
[1749770289219,0.75489,2648.1,2648.0,8.96232]
[1749770291028,0.75489,2648.1,2648.0,8.2074]
[1749770291330,0.75495,2647.9,2647.8,3.82686412]
[1749770291529,0.75495,2647.9,2647.8,0.61906412]
[1749770292424,0.76057412,2648.1,2648.0,0.75492]
[1749770292626,0.75495,2648.0,2647.9,1.2382]
[1749770298533,0.00566412,2648.1,2648.0,0.75492]
[1749770298733,0.00566412,2648.1,2648.0,1.39022]
[1749770298929,0.00566412,2648.1,2648.0,7.71422]
[1749770299434,0.00566412,2648.1,2648.0,2.71422]
[1749770300340,0.76055412,2648.1,2648.0,2.71422]
[1749770300740,0.76055412,2648.1,2648.0,1.9593]
[1749770301434,0.76055412,2648.1,2648.0,2.71422]
[1749770301741,0.76055412,2648.1,2648.0,0.6353]
[1749770301934,0.00566412,2648.1,2647.8,3.82686412]
[1749770302239,0.75495,2647.9,2647.8,3.82686412]
[1749770302939,0.75495,2647.9,2647.8,0.61906412]
[1749770306146,1.20615,2647.9,2647.8,0.00566412]
[1749770306343,2.48435,2647.9,2647.8,0.00566412]
[1749770308539,1.20615,2647.9,2647.8,0.76064412]
[1749770310044,0.4512,2647.9,2647.8,0.76064412]
[1749770310446,5.09462,2648.7,2648.3,0.75479]
[1749770310751,0.75478,2648.5,2648.4,2.688]
[1749770311345,0.75478,2648.5,2648.4,1.9332]
[1749770311546,0.75478,2648.5,2648.4,2.68801]
[1749770312252,0.75478,2648.5,2648.4,1.9332]
[1749770312549,0.75478,2648.5,2648.4,2.68801]
[1749770312952,0.75478,2648.5,2648.4,1.9332]
[1749770314956,0.75483,2648.3,2648.2,6.268]
[1749770315155,0.75489,2648.1,2648.0,5.11790727]
[1749770315652,0.75489,2648.1,2648.0,2.65252]
[1749770315848,0.75489,2648.1,2648.0,1.8976]
[1749770316354,0.75489,2648.1,2648.0,2.65252]
[1749770316751,0.75488,2648.2,2648.1,0.75486]
[1749770318552,0.0620172,2648.5,2648.0,3.78489]
[1749770318758,0.8167972,2648.5,2648.4,0.75481]
[1749770319055,0.0620172,2648.5,2648.4,0.75481]
[1749770319450,0.0620172,2648.5,2648.4,2.05481]
[1749770320550,0.00373176,2648.7,2648.6,0.75475]
[1749770321151,0.00373176,2648.7,2648.6,2.05475]
[1749770321350,3.2078,2649.0,2648.6,2.05475]
[1749770321351,3.96244,2649.0,2648.9,0.75466]
[1749770321648,0.75464,2649.0,2648.9,0.75466]
[1749770322053,0.75464,2649.0,2648.9,2.00066]
[1749770322657,3.2078,2649.4,2649.1,0.75458]
[1749770322658,0.75462,2649.2,2649.1,0.75458]
[1749770322858,0.75461,2649.1,2649.0,1.38451]
[1749770326358,0.7546,2649.2,2649.1,0.75457]
[1749770326557,0.7546,2649.2,2649.1,1.99307]
[1749770326750,3.2078,2649.4,2649.3,0.75455]
[1749770327150,3.96232,2649.4,2649.3,0.75455]
[1749770327556,0.75455,2649.3,2649.2,0.75456]
[1749770327854,0.75455,2649.3,2649.0,0.6299]
[1749770327855,0.75465,2649.0,2648.9,0.75462]
[1749770328158,0.75458,2649.3,2649.2,0.75455]
[1749770328761,0.75462,2649.2,2649.1,0.75459]
[1749770331659,0.75463,2649.1,2649.0,0.7546]
[1749770331854,0.75463,2649.1,2649.0,1.2769]
[1749770332056,0.75463,2649.1,2649.0,2.03153]
[1749770332762,0.75459,2649.2,2649.1,0.75458]
[1749770333060,0.75459,2649.2,2649.1,30.57658]
[1749770333256,0.8165872,2649.3,2649.2,0.75458]
[1749770334064,0.75458,2649.2,2649.1,30.5756]
[1749770336062,0.75458,2649.2,2649.1,29.82]
[1749770336968,0.75458,2649.2,2649.1,30.57461]
[1749770337164,0.0620172,2649.3,2649.2,0.75458]
[1749770337165,0.8165672,2649.3,2649.2,0.75458]
[1749770337361,0.0620172,2649.3,2649.2,0.75458]
[1749770337557,0.0620172,2649.3,2649.2,2.04038]
[1749770340668,0.0620172,2649.3,2649.2,7.01458]
[1749770340871,0.75458,2649.2,2649.1,3.2078]
[1749770341068,0.75458,2649.2,2649.1,6.26]
[1749770341369,0.75463,2649.0,2648.9,2.07834]
[1749770341569,0.75463,2649.0,2648.9,31.89534]
[1749770341772,0.8165972,2649.3,2649.2,0.75458]
[1749770341965,0.0620172,2649.3,2649.2,24.31058]
[1749770344574,1.88562,2650.4,2649.9,0.75438]
[1749770344774,3.96218,2650.0,2649.9,24.30938]
[1749770345769,0.75441,2649.8,2649.7,0.00566412]
[1749770345965,0.75441,2649.8,2649.7,30.56810412]
[1749770346175,0.75441,2649.8,2649.7,29.81366412]
[1749770347582,0.75441,2649.8,2649.7,30.56810412]
[1749770351081,0.75441,2649.8,2649.7,0.00566412]
[1749770351286,2.58391,2649.8,2649.7,23.55566412]
[1749770351487,0.75441,2649.8,2649.7,23.55566412]
[1749770351687,0.75441,2649.9,2649.8,0.75438]
[1749770352679,0.75441,2649.8,2649.7,24.31007412]
[1749770354285,0.75441,2649.8,2649.7,24.30807412]
[1749770354988,0.75441,2649.8,2649.7,0.76007412]
[1749770355281,0.75441,2649.8,2649.7,0.00566412]
[1749770355979,1.88626,2649.5,2649.1,3.2078]
[1749770356187,0.75458,2649.2,2649.1,26.7548]
[1749770356484,0.75458,2649.2,2649.1,27.50938]
[1749770356684,0.75458,2649.2,2649.1,24.30158]
[1749770357287,0.75458,2649.2,2649.1,24.30159]
[1749770357488,0.75463,2649.1,2649.0,0.75462]
[1749770357680,0.75463,2649.1,2649.0,30.55562]
[1749770358886,0.75461,2649.2,2649.1,0.75458]
[1749770359086,0.75461,2649.1,2649.0,30.55562]
[1749770360390,0.8166272,2649.1,2649.0,30.55562]
[1749770360787,0.0620172,2649.1,2649.0,31.84442]
[1749770360987,0.8166272,2649.1,2649.0,31.84442]
[1749770361588,0.8166272,2649.1,2648.9,0.00566412]
[1749770361589,0.75463,2649.0,2648.9,0.00566412]
[1749770361890,0.8166472,2649.1,2648.9,23.55266412]
[1749770362087,0.8166472,2649.1,2649.0,1.41213]
[1749770362288,0.0620172,2649.1,2649.0,1.41213]
[1749770362488,0.0620172,2649.1,2649.0,2.63593]
[1749770363384,0.8166272,2649.1,2649.0,2.63593]
[1749770364797,0.0620172,2649.1,2649.0,2.63593]
[1749770365298,0.8166272,2649.1,2649.0,1.41213]
[1749770365492,0.8166272,2649.1,2649.0,31.21313]
[1749770367793,0.0620172,2649.1,2649.0,31.21313]
[1749770367998,0.0620172,2649.1,2649.0,32.48683]
[1749770368591,0.00566412,2649.4,2649.3,0.75455]
[1749770368791,0.00566412,2649.4,2649.3,24.30155]
[1749770369498,0.00566412,2649.4,2649.3,24.93585]
[1749770372602,3.96215,2650.0,2649.9,0.75438]
[1749770372903,0.75438,2649.9,2649.8,23.545]
[1749770374591,0.8163972,2649.9,2649.8,23.545]
[1749770375905,0.8163972,2649.9,2649.8,24.29941]
[1749770377100,0.0620172,2649.9,2649.8,24.29941]
[1749770377493,0.0620172,2649.9,2649.8,26.27641]
[1749770378001,0.8163972,2649.9,2649.8,26.27641]
[1749770379605,0.8163972,2649.9,2649.8,0.66]
[1749770379805,0.8163972,2649.9,2649.8,24.95641]
[1749770380703,0.8163972,2649.9,2649.8,26.19821]
[1749770381106,0.8163972,2649.9,2649.8,2.65621]
[1749770381403,0.8163972,2649.9,2649.8,26.19621]
[1749770381602,0.8163972,2649.9,2649.8,24.95441]
[1749770384106,0.8163972,2649.9,2649.8,26.25601]
[1749770385706,0.8163972,2649.9,2649.8,2.71601]
[1749770385908,0.8163972,2649.9,2649.8,26.25401]
[1749770387509,0.0620172,2649.9,2649.8,26.25401]
[1749770388118,0.8163972,2649.9,2649.8,26.25401]
[1749770388510,0.8163972,2649.9,2649.8,24.95241]
[1749770389411,0.0620172,2649.9,2649.8,24.95241]
[1749770389611,0.8163972,2649.9,2649.8,26.21901]
[1749770389911,0.0620172,2649.9,2649.8,26.21901]
[1749770390304,0.8163972,2649.9,2649.8,26.21901]
[1749770391505,0.0620172,2649.9,2649.8,26.21901]
[1749770391907,3.2078,2651.9,2650.1,3.782]
[1749770392113,1.272,2651.8,2651.2,3.2078]
[1749770392414,0.75391,2651.6,2651.5,0.75391]
[1749770392711,3.2078,2651.7,2651.3,30.53596]
[1749770392912,0.75398,2651.3,2651.2,3.9618]
[1749770393414,0.75398,2651.3,2651.2,33.7428]
[1749770395213,0.75398,2651.3,2651.2,3.2078]
[1749770395414,0.75398,2651.3,2651.2,29.776]
[1749770395632,3.2078,2651.8,2651.2,29.776]
[1749770395812,1.88414,2652.5,2651.7,3.2078]
[1749770396111,0.75381,2651.9,2651.8,0.6339]
[1749770396413,0.75381,2651.9,2651.6,29.892]
[1749770396414,3.2078,2651.9,2651.6,29.892]
[1749770396613,0.75386,2651.8,2651.6,30.64587]
[1749770396814,0.75387,2651.7,2651.6,29.892]
[1749770397815,0.75392,2651.5,2651.4,3.8417]
[1749770398016,0.75392,2651.5,2651.4,33.0928]
[1749770398912,0.75392,2651.5,2651.4,3.2078]
[1749770399117,0.75398,2651.3,2651.2,6.246]
[1749770399513,3.50368677,2652.7,2651.2,11.246]
[1749770399716,1.2331,2652.6,2652.1,3.2078]
[1749770399911,1.2331,2652.6,2652.1,26.94946412]
[1749770400114,0.75371,2652.3,2652.1,26.94946412]
[1749770400414,0.7537,2652.4,2652.1,26.94946412]
[1749770400616,0.75372,2652.2,2652.1,26.94946412]
[1749770400812,0.75372,2652.2,2652.1,27.70320412]
[1749770401214,3.2078,2652.7,2652.1,26.94946412]
[1749770401416,0.75369,2652.4,2652.3,0.75369]
[1749770401615,0.7537,2652.3,2652.2,1.99281]
[1749770401815,0.7537,2652.3,2652.2,1.2391]
[1749770402915,0.75372,2652.2,2652.1,9.45846412]
[1749770403123,0.75372,2652.2,2652.1,3.21346412]
[1749770403318,0.75372,2652.2,2652.1,0.00566412]
[1749770404730,5.75372,2652.2,2652.1,0.00566412]
[1749770405226,5.8157372,2652.2,2652.1,0.00566412]
[1749770405423,6.4593372,2652.2,2652.1,0.00566412]
[1749770406625,0.75381,2651.9,2651.8,3.2078]
[1749770407527,0.75389,2651.6,2651.5,9.4518]
[1749770408932,0.75389,2651.6,2651.5,3.2078]
[1749770409827,3.16175,2651.9,2651.5,0.75389]
[1749770410035,0.75395,2651.4,2651.3,1.42073412]
[1749770410234,0.75395,2651.4,2651.3,2.72453412]
[1749770410535,0.75395,2651.4,2651.3,1.97056412]
[1749770410933,0.75395,2651.4,2651.3,2.72454412]
[1749770411835,0.75395,2651.4,2651.3,1.97056412]
[1749770412333,0.75395,2651.4,2651.3,2.72454412]
[1749770414038,0.75395,2651.4,2651.3,1.97056412]
[1749770414341,0.75395,2651.4,2651.3,0.66676412]
[1749770414632,0.75395,2651.4,2651.3,0.00566412]
[1749770414839,0.75401,2651.2,2651.1,3.2078]
[1749770418540,0.75407,2651.0,2650.9,0.00566412]
[1749770419035,0.75401,2651.3,2651.2,0.75398]
[1749770419244,0.75401,2651.3,2651.2,3.96178]
[1749770419730,0.75401,2651.3,2651.2,3.2078]
[1749770419935,0.75407,2651.1,2650.9,4.43596412]
[1749770420136,0.75407,2651.1,2651.0,7.12903]
[1749770420340,0.75407,2651.1,2651.0,8.35153]
[1749770422843,0.75407,2651.1,2651.0,7.5975]
[1749770423043,0.75407,2651.1,2651.0,1.2225]
[1749770423241,3.2078,2652.5,2652.0,0.75378]
[1749770424545,0.75941412,2652.1,2652.0,1.97058]
[1749770424846,0.75941412,2652.1,2652.0,1.2168]
[1749770425943,0.75378,2652.0,2651.9,1.2866]
[1749770426538,0.75378,2652.0,2651.9,0.6632]
[1749770429439,0.75384,2651.8,2651.7,4.5354]
[1749770429643,0.75384,2651.8,2651.7,1.3276]
[1749770430045,9.5818,2651.8,2651.0,3.2078]
[1749770430250,0.75407,2651.1,2651.0,4.4829]
[1749770431649,0.75407,2651.1,2651.0,1.2751]
[1749770432351,0.75407,2651.1,2651.0,2.02917]
[1749770432853,0.75404,2651.1,2651.0,5.23694]
[1749770435556,0.8160572,2651.1,2651.0,5.23694]
[1749770435858,0.8160572,2651.1,2651.0,4.4829]
[1749770436546,0.8160572,2651.1,2651.0,5.23697]
[1749770437157,0.8160572,2651.1,2651.0,4.4829]
[1749770437553,0.8160572,2651.1,2651.0,1.2751]
[1749770438752,0.8160572,2651.1,2651.0,0.6149]
[1749770440152,0.8160572,2651.1,2651.0,1.36897]
[1749770444061,0.8160572,2651.1,2651.0,0.6149]
[1749770444261,0.75407,2651.0,2650.9,0.00566412]
[1749770444563,0.75407,2651.0,2650.9,0.75975412]
[1749770444765,0.8160572,2651.1,2651.0,0.75407]
[1749770445061,0.8160572,2651.1,2651.0,1.38377]
[1749770445262,0.8160572,2651.1,2651.0,2.61577]
[1749770445664,0.0620172,2651.1,2651.0,2.61577]
[1749770447267,0.8160572,2651.1,2651.0,2.61577]
[1749770447468,0.8160572,2651.1,2651.0,0.6297]
[1749770447766,0.75407,2651.0,2650.9,0.00566412]
[1749770448267,0.0620172,2651.1,2650.9,0.00566412]
[1749770448466,0.0620172,2651.1,2651.0,0.75407]
[1749770449267,0.8160572,2651.1,2651.0,0.75407]
[1749770449466,0.0620172,2651.1,2651.0,0.75407]
[1749770449655,0.8160572,2651.1,2651.0,0.75407]
[1749770449861,0.75404,2651.1,2651.0,0.75407]
[1749770450366,0.75402,2651.3,2651.2,0.75398]
[1749770450568,0.75406,2651.2,2651.1,0.75402]
[1749770452164,3.2078,2651.4,2651.3,0.75398]
[1749770452374,3.96175,2651.4,2651.3,0.75398]
[1749770452763,0.75398,2651.3,2651.2,1.39509]
[1749770455872,0.75398,2651.3,2651.2,0.6411]
[1749770456072,0.75398,2651.3,2651.2,1.39511]
[1749770465078,0.8159972,2651.3,2651.2,1.39511]
[1749770468774,3.21346412,2652.1,2651.9,0.75381]
[1749770468980,0.75388,2651.8,2651.5,1.88482]
[1749770469183,0.75388,2651.8,2651.7,0.75385]
[1749770470276,0.75388,2651.8,2651.6,0.6632]
[1749770470277,0.75387,2651.7,2651.6,1.41708]
[1749770470582,0.75387,2651.7,2651.6,0.6632]
[1749770470786,0.75387,2651.7,2651.4,1.35374]
[1749770470787,0.75393,2651.5,2651.4,1.35374]
[1749770470983,0.75398,2651.3,2651.2,1.4172]
[1749770471278,0.0620172,2651.3,2651.2,1.4172]
[1749770472380,0.8159972,2651.3,2651.2,1.4172]
[1749770473283,0.8159972,2651.3,2651.2,0.6632]
[1749770473476,0.8159972,2651.3,2651.1,5.21492]
[1749770473477,0.75401,2651.2,2651.1,5.21492]
[1749770475284,0.0620172,2651.3,2651.2,0.75401]
[1749770475784,0.0620172,2651.3,2651.2,4.48102901]
[1749770482293,0.8159972,2651.3,2651.2,3.72701901]
[1749770482693,0.75401,2651.2,2651.1,4.4609]
[1749770484395,0.75401,2651.2,2651.1,5.21492]
[1749770484784,0.0620172,2651.3,2651.2,0.75401]
[1749770485294,0.0620172,2651.3,2651.2,4.48102901]
[1749770485695,0.0620172,2651.3,2651.2,0.75401]
[1749770486793,0.00566412,2652.1,2651.2,5.0]
[1749770486987,0.00566412,2652.1,2652.0,0.75378]
[1749770487190,0.00566412,2652.1,2652.0,7.03978]
[1749770487392,0.6063,2652.8,2652.7,0.75358]
[1749770487587,0.6063,2652.8,2652.0,9.4938]
[1749770487588,3.2078,2652.9,2652.8,0.75356]
[1749770487890,1.2354,2653.4,2652.7,33.0368]
[1749770488090,0.75343,2653.3,2652.8,1.88389]
[1749770488295,0.75909412,2653.3,2652.8,3.10095412]
[1749770488596,0.75909412,2653.3,2653.1,0.75345]
[1749770488597,0.75345,2653.2,2653.1,0.75345]
[1749770489287,0.00566412,2653.3,2653.2,0.75344]
[1749770489994,0.00566412,2653.3,2653.2,2.03194]
[1749770490598,0.75907412,2653.3,2653.2,1.2785]
[1749770491595,0.00566412,2653.3,2653.2,2.03194]
[1749770491798,0.75907412,2653.3,2653.2,2.03194]
[1749770492095,0.00566412,2653.3,2653.2,2.03194]
[1749770492285,0.75907412,2653.3,2653.2,2.03194]
[1749770492692,0.75907412,2653.3,2653.2,1.2785]
[1749770493398,0.75907412,2653.3,2653.2,2.03194]
[1749770493696,0.75344,2653.2,2653.1,29.834]
[1749770497894,0.06768132,2653.3,2653.0,3.2078]
[1749770497895,0.75347,2653.1,2653.0,3.2078]
[1749770498099,0.75347,2653.1,2652.8,0.00566412]
[1749770498100,0.7535,2653.0,2652.9,6.251]
[1749770498398,0.06768132,2653.3,2653.2,0.75344]
[1749770498596,0.75345,2653.2,2653.1,0.75345]
[1749770498797,0.75345,2653.2,2653.1,25.52425]
[1749770498993,0.06768132,2653.3,2653.1,25.52425]
[1749770499297,0.06768132,2653.3,2653.2,1.99424]
[1749770499994,0.82109132,2653.3,2653.2,1.99424]
[1749770500792,0.06768132,2653.3,2653.2,1.99424]
[1749770501898,0.82109132,2653.3,2653.2,1.99424]
[1749770505100,0.06768132,2653.3,2653.2,1.99424]
[1749770505298,0.06768132,2653.3,2653.2,2.61344]
[1749770507803,0.06768132,2653.3,2653.2,26.13944]
[1749770511103,0.82109132,2653.3,2653.2,2.61344]
[1749770511309,0.82109132,2653.3,2653.2,0.75344]
[1749770511607,0.82109132,2653.3,2653.2,24.27844]
[1749770512607,0.06768132,2653.3,2653.2,24.27844]
[1749770512801,0.82109132,2653.3,2653.2,24.27844]
[1749770514204,0.82109132,2653.3,2653.2,23.525]
[1749770514808,0.82109132,2653.3,2653.2,24.27844]
[1749770515699,0.82109132,2653.3,2653.2,0.75344]
[1749770515903,0.75344,2653.2,2653.1,7.00346]
[1749770516105,0.75344,2653.2,2653.1,24.27746]
[1749770516301,0.75344,2653.2,2653.1,0.75346]
[1749770521513,1.8837,2653.1,2652.8,0.00566412]
[1749770521714,1.8837,2653.1,2652.2,3.73667848]
[1749770521715,1.88391,2652.8,2652.2,3.73667848]
[1749770521902,0.75373,2652.2,2652.1,3.2078]
[1749770522309,4.3407,2652.7,2652.1,3.2078]
[1749770522509,0.75373,2652.2,2652.1,3.96154]
[1749770523507,0.75373,2652.2,2652.1,3.2078]
[1749770523707,0.75378,2652.0,2651.9,0.00566412]
[1749770525010,0.75377,2652.1,2652.0,0.75376]
[1749770525211,0.75378,2652.0,2651.9,0.00566412]
[1749770526317,1.20448,2652.0,2651.9,0.00566412]
[1749770526919,0.4507,2652.0,2651.9,0.75947412]
[1749770527114,1.20448,2652.0,2651.9,0.75947412]
[1749770527716,0.4507,2652.0,2651.9,0.75947412]
[1749770528619,0.0620172,2652.2,2652.1,0.75375]
[1749770528815,0.0620172,2652.2,2652.1,3.96155]
[1749770530314,3.2078,2652.9,2652.1,3.2078]
[1749770530513,0.6033,2653.2,2652.5,3.2078]
[1749770530709,0.6033,2653.2,2653.1,0.75347]
[1749770530915,0.75346,2653.2,2653.1,0.75345]
[1749770531518,3.21346412,2653.3,2652.6,1.2951]
[1749770531723,0.75352,2653.0,2652.9,0.75351]
[1749770532118,3.21346412,2653.3,2652.7,32.96275]
[1749770532417,0.75349,2653.1,2653.0,0.75348]
[1749770533322,0.75345,2653.2,2653.1,0.75344]
[1749770534022,0.75347,2653.1,2653.0,0.75349]
[1749770534915,0.75347,2653.1,2653.0,2.00239]
[1749770537920,3.21346412,2653.3,2653.0,2.00239]
[1749770538125,0.75345,2653.2,2653.1,0.75344]
[1749770538826,0.75347,2653.1,2653.0,2.00238]
[1749770540928,0.7535,2653.0,2652.9,3.2078]
[1749770541321,0.7535,2653.0,2652.9,3.96133]
[1749770541726,0.8154772,2653.2,2653.1,0.75347]
[1749770542027,0.8154572,2653.2,2653.1,0.75347]
[1749770544627,0.0620172,2653.2,2653.1,0.75347]
[1749770544825,0.0620172,2653.2,2653.1,1.40747]
[1749770545130,0.0620172,2653.2,2653.1,7.65547]
[1749770547328,3.2078,2653.7,2653.3,1.88354]
[1749770547525,3.2078,2653.7,2653.6,0.75333]
[1749770548630,3.9611,2653.7,2653.6,0.75333]
[1749770551237,0.7533,2653.7,2653.6,0.75333]
[1749770551431,0.75336,2653.6,2653.5,0.75334]
[1749770552330,0.75336,2653.5,2653.4,1.27865334]
[1749770552530,0.75336,2653.5,2653.4,0.00565334]
[1749770552731,5.75336,2653.5,2653.4,0.00565334]
[1749770553335,7.64956,2653.5,2653.4,0.00565334]
[1749770554334,7.7115772,2653.5,2653.4,0.00565334]
[1749770556429,2.7115772,2653.5,2653.4,0.00565334]
[1749770557231,0.0620172,2653.5,2653.4,0.75904334]
[1749770557728,0.0620172,2653.5,2653.4,2.61554334]
[1749770559837,0.0620172,2653.5,2653.4,6.35222182]
[1749770560139,0.0620172,2653.5,2653.4,2.61554334]
[1749770560538,0.0620172,2653.5,2653.4,6.35222182]
[1749770562239,0.0620172,2653.5,2653.4,2.61554334]
[1749770564042,0.0620172,2653.5,2653.4,32.36854334]
[1749770564234,0.0620172,2653.5,2653.4,36.10522182]
[1749770564446,0.0620172,2653.5,2653.4,32.36854334]
[1749770565143,5.8153972,2653.5,2653.4,0.00565334]
[1749770565539,8.3640972,2653.5,2653.4,0.00565334]
[1749770566237,3.3640972,2653.5,2653.4,0.00565334]
[1749770566432,2.0407972,2653.5,2653.4,0.00565334]
[1749770566731,0.0620172,2653.5,2653.4,0.75905334]
[1749770567640,0.0620172,2653.5,2653.4,2.05875334]
[1749770568840,0.8153972,2653.5,2653.4,2.05875334]
[1749770569141,0.8153972,2653.5,2653.4,0.00565334]
[1749770570138,0.8153972,2653.5,2653.4,0.75905334]
[1749770570542,0.8153972,2653.5,2653.4,0.00565334]
[1749770573345,0.8153972,2653.5,2653.4,0.75905334]
[1749770573840,0.8153972,2653.5,2653.4,0.00565334]
[1749770574038,0.8153972,2653.5,2653.4,0.75905334]
[1749770574435,0.0620172,2653.5,2653.4,0.75905334]
[1749770577948,0.8153972,2653.5,2653.4,0.75905334]
[1749770578140,0.0620172,2653.5,2653.4,0.75905334]
[1749770579843,0.8153972,2653.5,2653.4,0.75905334]
[1749770580349,0.0620172,2653.5,2653.4,0.75905334]
[1749770581748,0.0620172,2653.5,2653.4,1.99045334]
[1749770581952,3.2078,2654.5,2654.0,1.88309]
[1749770582139,0.75305,2654.7,2654.6,0.75304]
[1749770582343,0.75309,2654.6,2654.5,0.75307]
[1749770583049,0.75312,2654.4,2654.3,1.2314]
[1749770583351,0.75311,2654.5,2654.4,0.7531]
[1749770584253,3.08404,2654.8,2654.3,1.98453]
[1749770584254,0.75312,2654.4,2654.3,1.98453]
[1749770584950,0.0620172,2654.5,2654.4,0.75312]
[1749770585139,3.2078,2655.8,2654.4,36.71636]
[1749770585342,1.2957,2655.5,2655.0,3.2078]
[1749770585553,1.2866,2655.4,2655.0,3.2078]
[1749770585853,0.75292,2655.1,2655.0,3.2078]
[1749770586252,5.75292,2655.1,2655.0,3.2078]
[1749770586455,0.75298,2654.9,2654.8,0.00565334]
[1749770587246,7.69318,2654.9,2654.8,0.00565334]
[1749770587553,2.69318,2654.9,2654.8,0.00565334]
[1749770590857,1.39708,2654.9,2654.8,0.00565334]
[1749770592154,0.75298,2654.9,2654.8,3.21345334]
[1749770594954,0.75297,2655.0,2654.8,3.21345334]
[1749770595258,0.75297,2655.0,2654.9,1.8684]
[1749770596156,0.75297,2655.0,2654.9,0.6049]
[1749770596456,2.50876,2655.2,2654.8,3.21345334]
[1749770596457,0.75298,2654.9,2654.8,3.21345334]
[1749770600058,0.8149972,2654.9,2654.8,3.21345334]
[1749770607367,0.0620172,2654.9,2654.8,3.96646334]
[1749770607566,0.8149972,2654.9,2654.8,3.96646334]
[1749770607767,0.8149972,2654.9,2654.8,5.26926334]
[1749770609361,0.0620172,2654.9,2654.8,5.26926334]
[1749770609762,0.0620172,2654.9,2654.8,28.75826334]
[1749770609965,0.8149972,2654.9,2654.8,28.75826334]
[1749770610166,0.8149972,2654.9,2654.8,11.50326334]
[1749770610371,0.0620172,2654.9,2654.8,11.50326334]
[1749770611167,0.8149972,2654.9,2654.8,34.99226334]
[1749770612765,0.0620172,2654.9,2654.8,34.99226334]
[1749770612965,0.8149972,2654.9,2654.8,34.99226334]
[1749770613367,0.8149972,2654.9,2654.8,4.51625334]
[1749770613664,0.0620172,2654.9,2654.8,11.50326334]
[1749770614569,6.234,2656.0,2654.9,1.88246]
[1749770614775,0.75281,2655.6,2655.5,0.75278]
[1749770614974,0.75281,2655.6,2655.5,2.71038]
[1749770615370,0.75278,2655.6,2655.5,2.71038]
[1749770615674,0.75278,2655.6,2655.5,2.71041]
[1749770616163,0.75278,2655.6,2655.5,1.9576]
[1749770616570,0.75278,2655.6,2655.5,2.71041]
[1749770617276,0.75278,2655.7,2655.6,0.75275]
[1749770618374,3.7625,2656.7,2655.5,5.1654]
[1749770618673,0.75267,2656.0,2655.9,3.2078]
[1749770618973,0.75267,2656.0,2655.9,4.4285]
[1749770619175,0.75267,2656.0,2655.9,3.2078]
[1749770622081,0.75267,2656.0,2655.9,3.9605]
[1749770622279,0.75267,2656.0,2655.9,3.2078]
[1749770629582,0.8146872,2656.0,2655.9,3.2078]
[1749770630591,0.0620172,2656.0,2655.9,3.9605]
[1749770631488,0.0620172,2656.0,2655.9,4.5637]
[1749770634394,0.75258,2656.4,2656.3,0.75255]
[1749770634596,0.75258,2656.4,2656.3,3.96035]
[1749770635095,0.75258,2656.4,2656.3,5.28965]
[1749770636293,0.75252,2656.7,2656.6,0.75247]
[1749770636594,3.7608,2657.9,2656.6,9.4358]
[1749770636792,3.7608,2657.9,2656.7,1.9801]
[1749770636793,1.8809,2657.1,2656.7,1.9801]
[1749770637096,0.75244,2656.8,2656.7,6.8788]
[1749770637296,0.75244,2656.9,2656.8,0.75241]
[1749770638097,0.75233,2657.3,2657.2,0.7523]
[1749770638486,0.2080657,2657.5,2657.1,6.228]
[1749770638788,0.2080657,2657.5,2657.4,0.75227]
[1749770639190,0.9603057,2657.5,2657.4,0.75227]